[Event "Late-Titled-Tuesday-Blitz-December-26-2023"]
[Site "Chess.com"]
[Date "2023.12.26"]
[Round "10"]
[White "baag"]
[Black "mbojan"]
[Result "1-0"]
[WhiteElo "2862"]
[BlackElo "2891"]
[TimeControl "180+1"]
[EndTime "15:55:31 PST"]
[Termination "baag won on time"]

1. d4 {[%clk 0:03:00.9]} 1... a6 {[%clk 0:02:59.2]} 2. c4 {[%clk 0:02:58.4]}
2... g6 {[%clk 0:02:55]} 3. e4 {[%clk 0:02:58.1]} 3... Bg7 {[%clk 0:02:55.5]} 4.
Nf3 {[%clk 0:02:55.5]} 4... d6 {[%clk 0:02:55.8]} 5. h3 {[%clk 0:02:52.4]} 5...
Nd7 {[%clk 0:02:50.3]} 6. Be2 {[%clk 0:02:51.3]} 6... e5 {[%clk 0:02:50.6]} 7.
O-O {[%clk 0:02:51.7]} 7... Ngf6 {[%clk 0:02:50]} 8. Nc3 {[%clk 0:02:51.6]} 8...
O-O {[%clk 0:02:45.6]} 9. Re1 {[%clk 0:02:47.7]} 9... exd4 {[%clk 0:02:43.4]}
10. Nxd4 {[%clk 0:02:48.6]} 10... Re8 {[%clk 0:02:41.8]} 11. Bf1 {[%clk
0:02:44.8]} 11... Nc5 {[%clk 0:02:38.4]} 12. Qc2 {[%clk 0:02:42.8]} 12... Bd7
{[%clk 0:02:22.7]} 13. Nb3 {[%clk 0:02:21.3]} 13... b6 {[%clk 0:02:11.1]} 14.
Bf4 {[%clk 0:02:05.2]} 14... Bc6 {[%clk 0:02:02.5]} 15. Nxc5 {[%clk 0:01:30.7]}
15... bxc5 {[%clk 0:02:03.4]} 16. Rad1 {[%clk 0:01:29.1]} 16... Nd7 {[%clk
0:01:59.7]} 17. Nd5 {[%clk 0:01:26.4]} 17... Bxd5 {[%clk 0:01:51.8]} 18. cxd5
{[%clk 0:01:25.3]} 18... Bd4 {[%clk 0:01:23.3]} 19. b4 {[%clk 0:01:16.3]} 19...
Qf6 {[%clk 0:01:21.3]} 20. Be3 {[%clk 0:01:06.9]} 20... Bxe3 {[%clk 0:01:13.5]}
21. Rxe3 {[%clk 0:01:07.8]} 21... cxb4 {[%clk 0:01:13.8]} 22. Qxc7 {[%clk
0:01:03.6]} 22... Nc5 {[%clk 0:01:13.8]} 23. Rde1 {[%clk 0:00:52.1]} 23... Qd8
{[%clk 0:00:28.8]} 24. Qxd8 {[%clk 0:00:51.8]} 24... Raxd8 {[%clk 0:00:29.7]}
25. f4 {[%clk 0:00:51.7]} 25... f6 {[%clk 0:00:27.5]} 26. e5 {[%clk 0:00:40.4]}
26... fxe5 {[%clk 0:00:23.1]} 27. fxe5 {[%clk 0:00:41.3]} 27... dxe5 {[%clk
0:00:23.6]} 28. Rxe5 {[%clk 0:00:42.2]} 28... Rxe5 {[%clk 0:00:24]} 29. Rxe5
{[%clk 0:00:43.1]} 29... Rd6 {[%clk 0:00:24.3]} 30. Re7 {[%clk 0:00:37.3]} 30...
Na4 {[%clk 0:00:14.8]} 31. Ra7 {[%clk 0:00:32.7]} 31... Nc3 {[%clk 0:00:14.9]}
32. Bxa6 {[%clk 0:00:29.5]} 32... Nxa2 {[%clk 0:00:11]} 33. Bc4 {[%clk
0:00:24.6]} 33... Nc3 {[%clk 0:00:11.3]} 34. Rb7 {[%clk 0:00:23.4]} 34... Kh8
{[%clk 0:00:10.7]} 35. Rxb4 {[%clk 0:00:08.3]} 35... Kg7 {[%clk 0:00:11.1]} 36.
Rb3 {[%clk 0:00:07.4]} 36... Ne4 {[%clk 0:00:11]} 37. Re3 {[%clk 0:00:07.6]}
37... Nc5 {[%clk 0:00:09.6]} 38. Kf2 {[%clk 0:00:07.5]} 38... Rf6+ {[%clk
0:00:08.9]} 39. Ke2 {[%clk 0:00:07.6]} 39... Rb6 {[%clk 0:00:05.6]} 40. Re7+
{[%clk 0:00:06.4]} 40... Kf6 {[%clk 0:00:02.5]} 41. Rxh7 {[%clk 0:00:06.9]}
41... Rb2+ {[%clk 0:00:02.9]} 42. Kf3 {[%clk 0:00:07.6]} 42... Nb7 {[%clk
0:00:03.3]} 43. Rd7 {[%clk 0:00:04.4]} 43... Nc5 {[%clk 0:00:02.9]} 44. Rd6+
{[%clk 0:00:03.8]} 44... Ke5 {[%clk 0:00:03.5]} 45. Rxg6 {[%clk 0:00:04.1]}
45... Kd4 {[%clk 0:00:01.8]} 46. Rg4+ {[%clk 0:00:04.4]} 46... Ke5 {[%clk
0:00:01.8]} 47. h4 {[%clk 0:00:03.4]} 47... Rb1 {[%clk 0:00:02]} 48. Be2 {[%clk
0:00:02.2]} 48... Rb3+ {[%clk 0:00:01.9]} 49. Kf2 {[%clk 0:00:02.6]} 49... Ne4+
{[%clk 0:00:02.5]} 50. Kg1 {[%clk 0:00:02.9]} 50... Rb1+ {[%clk 0:00:02.1]} 51.
Kh2 {[%clk 0:00:03.6]} 51... Nf2 {[%clk 0:00:02.6]} 52. Rg5+ {[%clk 0:00:03.5]}
52... Kf4 {[%clk 0:00:02.5]} 53. g3+ {[%clk 0:00:04.2]} 53... Ke3 {[%clk
0:00:02.5]} 54. Re5+ {[%clk 0:00:02.6]} 54... Kd4 {[%clk 0:00:02.4]} 55. Re8
{[%clk 0:00:02.8]} 55... Ne4 {[%clk 0:00:02.7]} 56. Kg2 {[%clk 0:00:02.2]} 56...
Rb2 {[%clk 0:00:03.1]} 57. Kf3 {[%clk 0:00:02.9]} 57... Nd2+ {[%clk 0:00:03.4]}
58. Kf4 {[%clk 0:00:02.7]} 58... Kxd5 {[%clk 0:00:03.7]} 59. Bf3+ {[%clk
0:00:02.4]} 59... Kd6 {[%clk 0:00:04.1]} 60. Re3 {[%clk 0:00:02.1]} 60... Nc4
{[%clk 0:00:04.1]} 61. Rd3+ {[%clk 0:00:01.9]} 61... Ke7 {[%clk 0:00:04.8]} 62.
Be4 {[%clk 0:00:02.1]} 62... Nd6 {[%clk 0:00:05]} 63. Bf3 {[%clk 0:00:01.9]}
63... Rb4+ {[%clk 0:00:05.1]} 64. Ke3 {[%clk 0:00:02.2]} 64... Nf5+ {[%clk
0:00:05.1]} 65. Kf2 {[%clk 0:00:02.7]} 65... Rb2+ {[%clk 0:00:05.6]} 66. Be2
{[%clk 0:00:03.5]} 66... Kf6 {[%clk 0:00:06.1]} 67. h5 {[%clk 0:00:03.5]} 67...
Kg5 {[%clk 0:00:06.1]} 68. Rd5 {[%clk 0:00:02.6]} 68... Kf6 {[%clk 0:00:06.5]}
69. g4 {[%clk 0:00:02.3]} 69... Ne7 {[%clk 0:00:07.2]} 70. Rd3 {[%clk
0:00:02.4]} 70... Kg5 {[%clk 0:00:07.1]} 71. Re3 {[%clk 0:00:02.9]} 71... Ng8
{[%clk 0:00:06.8]} 72. Kg3 {[%clk 0:00:03.3]} 72... Kf6 {[%clk 0:00:02.9]} 73.
Kf4 {[%clk 0:00:03.7]} 73... Rb4+ {[%clk 0:00:03.2]} 74. Kg3 {[%clk 0:00:02.9]}
74... Nh6 {[%clk 0:00:02.7]} 75. Rf3+ {[%clk 0:00:03.2]} 75... Kg5 {[%clk
0:00:02.9]} 76. Rf8 {[%clk 0:00:03.3]} 76... Rb3+ {[%clk 0:00:02.4]} 77. Bf3
{[%clk 0:00:04.1]} 77... Rb1 {[%clk 0:00:02.3]} 78. Rd8 {[%clk 0:00:03.7]} 78...
Rf1 {[%clk 0:00:02.4]} 79. Rd5+ {[%clk 0:00:03.4]} 79... Kf6 {[%clk 0:00:03.1]}
80. g5+ {[%clk 0:00:04]} 80... Kg7 {[%clk 0:00:03.5]} 81. gxh6+ {[%clk
0:00:04.5]} 81... Kxh6 {[%clk 0:00:04.1]} 82. Rd6+ {[%clk 0:00:04.6]} 82... Kg5
{[%clk 0:00:04.4]} 83. Rg6+ {[%clk 0:00:05.3]} 83... Kf5 {[%clk 0:00:05]} 84.
Bg4+ {[%clk 0:00:06.2]} 84... Ke5 {[%clk 0:00:05.2]} 85. Kh4 {[%clk 0:00:07]}
85... Rh1+ {[%clk 0:00:01.2]} 86. Kg5 {[%clk 0:00:07.9]} 86... Ra1 {[%clk
0:00:01.3]} 87. Re6+ {[%clk 0:00:08.4]} 87... Kd5 {[%clk 0:00:01.3]} 88. Re8
{[%clk 0:00:09.3]} 88... Ra7 {[%clk 0:00:01]} 89. h6 {[%clk 0:00:09.7]} 89...
Re7 {[%clk 0:00:01.8]} 90. Rxe7 {[%clk 0:00:09.9]} 90... Kd6 {[%clk 0:00:02.5]}
91. Re6+ {[%clk 0:00:09.6]} 91... Kc5 {[%clk 0:00:03.4]} 92. h7 {[%clk
0:00:10.3]} 1-0

[Event "Late-Titled-Tuesday-Blitz-December-26-2023"]
[Site "Chess.com"]
[Date "2023.12.26"]
[Round "11"]
[White "Marcin"]
[Black "SnekkerAndersen"]
[Result "0-1"]
[WhiteElo "2485"]
[BlackElo "2578"]
[TimeControl "180+1"]
[EndTime "15:58:27 PST"]
[Termination "SnekkerAndersen won by resignation"]

1. d4 {[%clk 0:02:57]} 1... e6 {[%clk 0:02:59.6]} 2. c4 {[%clk 0:02:56.1]} 2...
d5 {[%clk 0:02:59.6]} 3. Nf3 {[%clk 0:02:56.2]} 3... Nf6 {[%clk 0:02:58.1]} 4.
g3 {[%clk 0:02:56.6]} 4... Be7 {[%clk 0:02:58.2]} 5. Bg2 {[%clk 0:02:56.6]} 5...
O-O {[%clk 0:02:58.8]} 6. Nc3 {[%clk 0:02:57.2]} 6... dxc4 {[%clk 0:02:31.5]} 7.
Ne5 {[%clk 0:02:54.3]} 7... c5 {[%clk 0:02:28.5]} 8. dxc5 {[%clk 0:02:54.4]}
8... Qa5 {[%clk 0:02:24]} 9. Nxc4 {[%clk 0:02:48.9]} 9... Qxc5 {[%clk
0:02:23.7]} 10. Qb3 {[%clk 0:02:46.3]} 10... Nc6 {[%clk 0:02:22.9]} 11. O-O
{[%clk 0:02:27]} 11... Nd4 {[%clk 0:02:21.2]} 12. Qa4 {[%clk 0:02:14.6]} 12...
Bd7 {[%clk 0:02:16.2]} 0-1

[Event "Late-Titled-Tuesday-Blitz-December-26-2023"]
[Site "Chess.com"]
[Date "2023.12.26"]
[Round "11"]
[White "Aguiar94"]
[Black "almaguerjm"]
[Result "1-0"]
[WhiteElo "2558"]
[BlackElo "2478"]
[TimeControl "180+1"]
[EndTime "15:59:25 PST"]
[Termination "Aguiar94 won by resignation"]

1. e4 {[%clk 0:03:00.9]} 1... e5 {[%clk 0:02:57.7]} 2. Nf3 {[%clk 0:03:00.6]}
2... Nc6 {[%clk 0:02:58.1]} 3. Nc3 {[%clk 0:03:00.5]} 3... Nf6 {[%clk 0:02:58]}
4. Bb5 {[%clk 0:02:59.6]} 4... Bb4 {[%clk 0:02:57.5]} 5. O-O {[%clk 0:02:58.8]}
5... O-O {[%clk 0:02:57.4]} 6. d3 {[%clk 0:02:58.9]} 6... Bxc3 {[%clk
0:02:41.2]} 7. bxc3 {[%clk 0:02:59.8]} 7... d6 {[%clk 0:02:41.6]} 8. Bg5 {[%clk
0:02:59.4]} 8... Ne7 {[%clk 0:02:41.7]} 9. Nh4 {[%clk 0:02:58.5]} 9... c6 {[%clk
0:02:36.9]} 10. Bc4 {[%clk 0:02:52.9]} 10... d5 {[%clk 0:02:32.7]} 11. exd5
{[%clk 0:02:53.8]} 11... cxd5 {[%clk 0:02:31.7]} 12. Bb3 {[%clk 0:02:54]} 12...
Ng6 {[%clk 0:02:30.7]} 13. Nxg6 {[%clk 0:02:53.5]} 13... hxg6 {[%clk 0:02:31.6]}
14. f4 {[%clk 0:02:49.2]} 14... Qb6+ {[%clk 0:02:21.4]} 15. Kh1 {[%clk
0:02:48.9]} 15... Ng4 {[%clk 0:02:19.8]} 16. fxe5 {[%clk 0:02:39.2]} 16... Nf2+
{[%clk 0:02:11.6]} 17. Rxf2 {[%clk 0:02:39.1]} 17... Qxf2 {[%clk 0:02:12.5]} 18.
Bxd5 {[%clk 0:02:38.9]} 18... Be6 {[%clk 0:02:12.8]} 19. Bxb7 {[%clk 0:02:35.6]}
19... Rab8 {[%clk 0:02:13.1]} 20. Be4 {[%clk 0:02:36]} 20... Qc5 {[%clk
0:02:11]} 21. Qd2 {[%clk 0:02:29.3]} 21... Rfc8 {[%clk 0:02:09.7]} 22. c4 {[%clk
0:02:26.8]} 22... Qxe5 {[%clk 0:02:09.8]} 23. Re1 {[%clk 0:02:22.7]} 23... Rb6
{[%clk 0:01:45.9]} 24. Bxg6 {[%clk 0:02:02.8]} 24... fxg6 {[%clk 0:01:43]} 25.
Rxe5 {[%clk 0:02:01.5]} 1-0

[Event "Late-Titled-Tuesday-Blitz-December-26-2023"]
[Site "Chess.com"]
[Date "2023.12.26"]
[Round "11"]
[White "The_Straightforward_Rook"]
[Black "Smile2005"]
[Result "0-1"]
[WhiteElo "2386"]
[BlackElo "2347"]
[TimeControl "180+1"]
[EndTime "15:59:40 PST"]
[Termination "Smile2005 won by resignation"]

1. e4 {[%clk 0:03:00.9]} 1... g6 {[%clk 0:02:59]} 2. d4 {[%clk 0:03:00.3]} 2...
Bg7 {[%clk 0:02:59.9]} 3. Nf3 {[%clk 0:03:00.6]} 3... d6 {[%clk 0:03:00.6]} 4.
Bd3 {[%clk 0:03:00.2]} 4... Nc6 {[%clk 0:02:59.6]} 5. c3 {[%clk 0:02:59.9]} 5...
e5 {[%clk 0:03:00.1]} 6. d5 {[%clk 0:02:56.8]} 6... Nce7 {[%clk 0:03:01]} 7. c4
{[%clk 0:02:54.3]} 7... h6 {[%clk 0:03:01.9]} 8. Nc3 {[%clk 0:02:51.4]} 8... f5
{[%clk 0:03:02.8]} 9. Qc2 {[%clk 0:02:46.5]} 9... Nf6 {[%clk 0:03:02.1]} 10. Nh4
{[%clk 0:02:42.8]} 10... f4 {[%clk 0:02:56.2]} 11. g3 {[%clk 0:02:38.4]} 11...
g5 {[%clk 0:02:55.1]} 12. Ng2 {[%clk 0:02:37.2]} 12... a5 {[%clk 0:02:52.3]} 13.
f3 {[%clk 0:02:36.7]} 13... fxg3 {[%clk 0:02:50.5]} 14. hxg3 {[%clk 0:02:36.4]}
14... Ng6 {[%clk 0:02:50.4]} 15. Be3 {[%clk 0:02:35.3]} 15... b6 {[%clk
0:02:49.9]} 16. O-O-O {[%clk 0:02:35.2]} 16... Bd7 {[%clk 0:02:44.6]} 17. Kb1
{[%clk 0:02:35.2]} 17... Rb8 {[%clk 0:02:33.9]} 18. a4 {[%clk 0:02:32.4]} 18...
c6 {[%clk 0:02:28.9]} 19. dxc6 {[%clk 0:02:30.2]} 19... Bxc6 {[%clk 0:02:29.8]}
20. Bf2 {[%clk 0:02:20.5]} 20... Qd7 {[%clk 0:02:27.4]} 21. Ne3 {[%clk 0:02:19]}
21... Ne7 {[%clk 0:02:24.7]} 22. b3 {[%clk 0:02:14]} 22... g4 {[%clk 0:02:15.4]}
23. f4 {[%clk 0:02:09.2]} 23... Ng6 {[%clk 0:02:13.3]} 24. f5 {[%clk 0:02:07.9]}
24... Ne7 {[%clk 0:02:12.9]} 25. Ka2 {[%clk 0:02:07]} 25... Nc8 {[%clk
0:02:09.4]} 26. Qe2 {[%clk 0:01:58.8]} 26... h5 {[%clk 0:02:07.3]} 27. Bc2
{[%clk 0:01:54.9]} 27... Na7 {[%clk 0:02:06.1]} 28. Nb5 {[%clk 0:01:46.4]} 28...
Nxb5 {[%clk 0:02:02.4]} 29. cxb5 {[%clk 0:01:47.3]} 29... Bxe4 {[%clk
0:02:01.9]} 30. Bxe4 {[%clk 0:01:36.4]} 30... Nxe4 {[%clk 0:02:02.8]} 31. Nxg4
{[%clk 0:01:37]} 31... Nc3+ {[%clk 0:02:02.4]} 0-1

[Event "Late-Titled-Tuesday-Blitz-December-26-2023"]
[Site "Chess.com"]
[Date "2023.12.26"]
[Round "11"]
[White "Jesusesmifuerza"]
[Black "KVAIDAN"]
[Result "0-1"]
[WhiteElo "2208"]
[BlackElo "2384"]
[TimeControl "180+1"]
[EndTime "16:00:48 PST"]
[Termination "KVAIDAN won by resignation"]

1. e4 {[%clk 0:02:58.3]} 1... e5 {[%clk 0:02:56.7]} 2. Nf3 {[%clk 0:02:58.3]}
2... d5 {[%clk 0:02:56.6]} 3. Nxe5 {[%clk 0:02:34.1]} 3... Bd6 {[%clk
0:02:55.2]} 4. d4 {[%clk 0:02:34.1]} 4... dxe4 {[%clk 0:02:54.9]} 5. Bc4 {[%clk
0:02:34.7]} 5... Bxe5 {[%clk 0:02:54.3]} 6. Qh5 {[%clk 0:02:34.6]} 6... Qe7
{[%clk 0:02:50.5]} 7. Qxe5 {[%clk 0:02:34.7]} 7... Qxe5 {[%clk 0:02:49.4]} 8.
dxe5 {[%clk 0:02:35.6]} 8... Nc6 {[%clk 0:02:49.9]} 9. Bf4 {[%clk 0:02:35.2]}
9... Nge7 {[%clk 0:02:48.8]} 10. Nc3 {[%clk 0:02:34.3]} 10... Bf5 {[%clk
0:02:46.6]} 11. O-O-O {[%clk 0:02:31.1]} 11... Ng6 {[%clk 0:02:44.8]} 12. Bg3
{[%clk 0:02:30.8]} 12... Ngxe5 {[%clk 0:02:45.1]} 13. Bb5 {[%clk 0:02:30.1]}
13... O-O {[%clk 0:02:43.7]} 14. Rde1 {[%clk 0:02:27.7]} 14... a6 {[%clk
0:02:34]} 15. Bxc6 {[%clk 0:02:27.4]} 15... Nxc6 {[%clk 0:02:33.2]} 16. Nxe4
{[%clk 0:02:27.4]} 16... Rfe8 {[%clk 0:02:33.4]} 17. Nc5 {[%clk 0:02:25.2]}
17... b6 {[%clk 0:02:29.8]} 18. Nb3 {[%clk 0:02:21.2]} 18... Nb4 {[%clk
0:02:29]} 19. Nd4 {[%clk 0:02:15.1]} 19... Bg6 {[%clk 0:02:25.9]} 20. a3 {[%clk
0:02:11.5]} 20... Nd5 {[%clk 0:02:22.7]} 21. c4 {[%clk 0:02:02.1]} 21... Nf6
{[%clk 0:02:18.7]} 22. b3 {[%clk 0:01:42]} 22... c5 {[%clk 0:02:18.3]} 23. Ne2
{[%clk 0:01:22.4]} 23... b5 {[%clk 0:02:16.6]} 24. cxb5 {[%clk 0:01:21.4]} 24...
axb5 {[%clk 0:02:14.2]} 25. Kb2 {[%clk 0:01:22]} 25... c4 {[%clk 0:02:12.4]} 26.
Nf4 {[%clk 0:01:17.4]} 26... Bf5 {[%clk 0:02:07.5]} 27. Rxe8+ {[%clk 0:01:13.6]}
27... Rxe8 {[%clk 0:02:06.4]} 28. f3 {[%clk 0:01:13.8]} 28... g5 {[%clk
0:02:03.9]} 29. bxc4 {[%clk 0:00:36.3]} 29... gxf4 {[%clk 0:02:03.6]} 30. Bxf4
{[%clk 0:00:37.2]} 30... bxc4 {[%clk 0:02:03.6]} 31. Kc3 {[%clk 0:00:37.4]}
31... Bd3 {[%clk 0:02:03.3]} 32. a4 {[%clk 0:00:33]} 32... Nd5+ {[%clk
0:02:03.2]} 0-1

[Event "Late-Titled-Tuesday-Blitz-December-26-2023"]
[Site "Chess.com"]
[Date "2023.12.26"]
[Round "11"]
[White "FrenchHarvey"]
[Black "Statham_l3"]
[Result "1-0"]
[WhiteElo "2653"]
[BlackElo "2561"]
[TimeControl "180+1"]
[EndTime "16:00:55 PST"]
[Termination "FrenchHarvey won by checkmate"]

1. e4 {[%clk 0:03:00.9]} 1... e5 {[%clk 0:03:00.1]} 2. Nf3 {[%clk 0:03:00.8]}
2... Nc6 {[%clk 0:03:00.8]} 3. Bb5 {[%clk 0:03:01.4]} 3... a6 {[%clk 0:03:00.8]}
4. Ba4 {[%clk 0:03:01.7]} 4... Nf6 {[%clk 0:03:01.1]} 5. O-O {[%clk 0:03:01.6]}
5... Be7 {[%clk 0:03:01.3]} 6. d3 {[%clk 0:03:00.4]} 6... b5 {[%clk 0:03:00.3]}
7. Bb3 {[%clk 0:03:01.1]} 7... O-O {[%clk 0:03:00.6]} 8. Nc3 {[%clk 0:03:01.8]}
8... Bb7 {[%clk 0:03:00.2]} 9. Nd5 {[%clk 0:03:01.6]} 9... Na5 {[%clk
0:02:54.4]} 10. Nxe7+ {[%clk 0:03:01]} 10... Qxe7 {[%clk 0:02:55.3]} 11. Bg5
{[%clk 0:03:00]} 11... Nxb3 {[%clk 0:02:51]} 12. axb3 {[%clk 0:02:59.9]} 12...
h6 {[%clk 0:02:39.5]} 13. Bh4 {[%clk 0:02:59.7]} 13... a5 {[%clk 0:02:18.1]} 14.
c4 {[%clk 0:02:59]} 14... b4 {[%clk 0:02:11]} 15. Qd2 {[%clk 0:02:41]} 15... c5
{[%clk 0:02:03.6]} 16. Qe3 {[%clk 0:02:39.2]} 16... Ra6 {[%clk 0:02:00.5]} 17.
h3 {[%clk 0:02:38.8]} 17... Rfa8 {[%clk 0:01:39.2]} 18. Nh2 {[%clk 0:02:37.6]}
18... Qd6 {[%clk 0:01:33.7]} 19. Bxf6 {[%clk 0:02:33.4]} 19... Qxf6 {[%clk
0:01:33.2]} 20. Ng4 {[%clk 0:02:33.4]} 20... Qd6 {[%clk 0:01:29.2]} 21. f4
{[%clk 0:02:32.4]} 21... exf4 {[%clk 0:01:14.8]} 22. Rxf4 {[%clk 0:02:29.3]}
22... a4 {[%clk 0:01:10.1]} 23. bxa4 {[%clk 0:02:25.8]} 23... Rxa4 {[%clk
0:01:11]} 24. Rxa4 {[%clk 0:02:25.8]} 24... Rxa4 {[%clk 0:01:11.9]} 25. e5
{[%clk 0:02:25.6]} 25... Qg6 {[%clk 0:00:57.6]} 26. Nf6+ {[%clk 0:02:19.1]}
26... Kh8 {[%clk 0:00:39]} 27. Rg4 {[%clk 0:02:18.7]} 27... Ra1+ {[%clk
0:00:23.9]} 28. Kh2 {[%clk 0:02:18.7]} 28... Qf5 {[%clk 0:00:04.6]} 29. Qxh6+
{[%clk 0:02:18.3]} 29... gxh6 {[%clk 0:00:05.5]} 30. Rg8# {[%clk 0:02:18]} 1-0

[Event "Late-Titled-Tuesday-Blitz-December-26-2023"]
[Site "Chess.com"]
[Date "2023.12.26"]
[Round "11"]
[White "Skatchkov_V"]
[Black "OneTrickPony_82"]
[Result "0-1"]
[WhiteElo "2588"]
[BlackElo "2512"]
[TimeControl "180+1"]
[EndTime "16:00:57 PST"]
[Termination "OneTrickPony_82 won by resignation"]

1. d4 {[%clk 0:02:23.5]} 1... Nf6 {[%clk 0:02:59.3]} 2. c4 {[%clk 0:02:18.3]}
2... e6 {[%clk 0:02:58.9]} 3. Nf3 {[%clk 0:02:12]} 3... d5 {[%clk 0:02:58.7]} 4.
g3 {[%clk 0:02:08.6]} 4... dxc4 {[%clk 0:02:57.1]} 5. Bg2 {[%clk 0:02:06.9]}
5... c5 {[%clk 0:02:57.4]} 6. O-O {[%clk 0:02:00.3]} 6... Nc6 {[%clk 0:02:56.8]}
7. dxc5 {[%clk 0:02:00.6]} 7... Qxd1 {[%clk 0:02:56.1]} 8. Rxd1 {[%clk
0:02:01.5]} 8... Bxc5 {[%clk 0:02:56.1]} 9. Nbd2 {[%clk 0:02:02.4]} 9... c3
{[%clk 0:02:55.6]} 10. bxc3 {[%clk 0:02:03.3]} 10... O-O {[%clk 0:02:55]} 11.
Nb3 {[%clk 0:02:04]} 11... Be7 {[%clk 0:02:52.9]} 12. c4 {[%clk 0:02:01.7]}
12... Bd7 {[%clk 0:02:51]} 13. Bb2 {[%clk 0:01:58.6]} 13... Rfc8 {[%clk
0:02:43.1]} 14. Bxf6 {[%clk 0:01:55]} 14... Bxf6 {[%clk 0:02:43.2]} 15. Rxd7
{[%clk 0:01:55.9]} 15... Bxa1 {[%clk 0:02:43.2]} 16. Nxa1 {[%clk 0:01:56.8]}
16... Rd8 {[%clk 0:02:43.4]} 17. Rd2 {[%clk 0:01:52.9]} 17... Na5 {[%clk
0:02:29]} 18. Nb3 {[%clk 0:01:43.7]} 18... Nxc4 {[%clk 0:02:27.7]} 19. Rc2
{[%clk 0:01:43.2]} 19... Rd1+ {[%clk 0:02:24.9]} 20. Bf1 {[%clk 0:01:42.6]}
20... b5 {[%clk 0:02:23.2]} 21. Kg2 {[%clk 0:01:34.3]} 21... Rc8 {[%clk
0:02:13.2]} 22. Rc3 {[%clk 0:01:02.1]} 22... Rxf1 {[%clk 0:01:33.2]} 23. Kxf1
{[%clk 0:00:54]} 23... Nd2+ {[%clk 0:01:33.5]} 24. Nfxd2 {[%clk 0:00:53.4]}
24... Rxc3 {[%clk 0:01:34.1]} 0-1

[Event "Late-Titled-Tuesday-Blitz-December-26-2023"]
[Site "Chess.com"]
[Date "2023.12.26"]
[Round "11"]
[White "gxbg2000"]
[Black "ShahMatKanal"]
[Result "0-1"]
[WhiteElo "2046"]
[BlackElo "2507"]
[TimeControl "180+1"]
[EndTime "16:01:24 PST"]
[Termination "ShahMatKanal won by resignation"]

1. e4 {[%clk 0:03:00.9]} 1... e5 {[%clk 0:02:59.8]} 2. Nf3 {[%clk 0:03:00.6]}
2... f5 {[%clk 0:03:00.3]} 3. exf5 {[%clk 0:02:59.2]} 3... Nf6 {[%clk
0:02:56.3]} 4. d3 {[%clk 0:02:58.6]} 4... Nc6 {[%clk 0:02:54.3]} 5. Be2 {[%clk
0:02:58.5]} 5... d5 {[%clk 0:02:54.2]} 6. O-O {[%clk 0:02:58.9]} 6... Bxf5
{[%clk 0:02:54.3]} 7. Nc3 {[%clk 0:02:58.2]} 7... d4 {[%clk 0:02:49.3]} 8. Nb1
{[%clk 0:02:49]} 8... Bd6 {[%clk 0:02:43.7]} 9. Bg5 {[%clk 0:02:47.9]} 9... h6
{[%clk 0:02:42.2]} 10. Bh4 {[%clk 0:02:47.8]} 10... Qd7 {[%clk 0:02:38.1]} 11.
Nbd2 {[%clk 0:02:46.4]} 11... Be6 {[%clk 0:02:23.5]} 12. a3 {[%clk 0:02:43.8]}
12... a5 {[%clk 0:02:18.2]} 13. b3 {[%clk 0:02:39.9]} 13... b5 {[%clk
0:01:56.8]} 14. a4 {[%clk 0:02:37.8]} 14... b4 {[%clk 0:01:55.1]} 15. Bxf6
{[%clk 0:02:22.3]} 15... gxf6 {[%clk 0:01:54.3]} 16. Ne4 {[%clk 0:02:23.2]}
16... Be7 {[%clk 0:01:46.2]} 17. Qd2 {[%clk 0:02:10.9]} 17... O-O-O {[%clk
0:01:37.2]} 18. Ne1 {[%clk 0:01:51.8]} 18... f5 {[%clk 0:01:33.3]} 19. Ng3
{[%clk 0:01:48.7]} 19... Bg5 {[%clk 0:01:33.6]} 20. Qd1 {[%clk 0:01:45]} 20...
Ne7 {[%clk 0:01:29.2]} 21. Bh5 {[%clk 0:01:33.6]} 21... Nd5 {[%clk 0:01:28.4]}
22. Nf3 {[%clk 0:01:31.5]} 22... Qd6 {[%clk 0:01:09.2]} 23. Bg6 {[%clk 0:01:22]}
23... Rhf8 {[%clk 0:01:03.3]} 24. Re1 {[%clk 0:01:19.5]} 24... Nc3 {[%clk
0:01:02.3]} 25. Nxg5 {[%clk 0:01:10.6]} 25... Nxd1 {[%clk 0:00:59.4]} 26. Nxe6
{[%clk 0:01:10.5]} 26... Qxe6 {[%clk 0:00:58.1]} 27. Bxf5 {[%clk 0:01:09.2]}
27... Rxf5 {[%clk 0:00:57.3]} 28. Nxf5 {[%clk 0:01:09.3]} 28... Nxf2 {[%clk
0:00:48.2]} 29. Rad1 {[%clk 0:01:10.2]} 29... Nxd1 {[%clk 0:00:46.9]} 0-1

[Event "Late-Titled-Tuesday-Blitz-December-26-2023"]
[Site "Chess.com"]
[Date "2023.12.26"]
[Round "11"]
[White "Dr_crypt"]
[Black "dennisodessa"]
[Result "1-0"]
[WhiteElo "2395"]
[BlackElo "2496"]
[TimeControl "180+1"]
[EndTime "16:01:48 PST"]
[Termination "Dr_crypt won by resignation"]

1. e4 {[%clk 0:02:59.8]} 1... e6 {[%clk 0:02:56.8]} 2. d4 {[%clk 0:02:59.2]}
2... d5 {[%clk 0:02:57.4]} 3. exd5 {[%clk 0:02:59.5]} 3... exd5 {[%clk
0:02:58.3]} 4. Bd3 {[%clk 0:02:59.1]} 4... Nf6 {[%clk 0:02:57.2]} 5. Bg5 {[%clk
0:02:58.8]} 5... Be7 {[%clk 0:02:56]} 6. Nf3 {[%clk 0:02:55.5]} 6... O-O {[%clk
0:02:52.6]} 7. O-O {[%clk 0:02:55.9]} 7... Bg4 {[%clk 0:02:46.3]} 8. h3 {[%clk
0:02:56.1]} 8... Bh5 {[%clk 0:02:45]} 9. Nbd2 {[%clk 0:02:56.1]} 9... Nbd7
{[%clk 0:01:39.1]} 10. c3 {[%clk 0:02:55.6]} 10... Re8 {[%clk 0:01:38.9]} 11.
Qb3 {[%clk 0:02:55.3]} 11... Qc8 {[%clk 0:01:21.2]} 12. Rfe1 {[%clk 0:02:37.6]}
12... c6 {[%clk 0:01:20.1]} 13. Bf5 {[%clk 0:02:37.7]} 13... Bg6 {[%clk
0:01:19.1]} 14. Bxg6 {[%clk 0:02:30.9]} 14... hxg6 {[%clk 0:01:15]} 15. Ne5
{[%clk 0:02:28.1]} 15... b6 {[%clk 0:00:54.8]} 16. Re3 {[%clk 0:02:17.6]} 16...
Nh7 {[%clk 0:00:40]} 17. Bxe7 {[%clk 0:02:15.2]} 17... Rxe7 {[%clk 0:00:40.9]}
18. Rae1 {[%clk 0:02:08.5]} 18... Nxe5 {[%clk 0:00:40.3]} 19. Rxe5 {[%clk
0:02:03.8]} 19... Rxe5 {[%clk 0:00:40.1]} 20. Rxe5 {[%clk 0:02:03.7]} 20... Qd7
{[%clk 0:00:32]} 21. Qa3 {[%clk 0:01:51]} 21... a5 {[%clk 0:00:12.1]} 22. Re7
{[%clk 0:01:41.6]} 22... Qd8 {[%clk 0:00:12.3]} 23. Nf3 {[%clk 0:01:40.1]} 23...
Nf8 {[%clk 0:00:10.2]} 24. Ne5 {[%clk 0:01:34.6]} 24... c5 {[%clk 0:00:03.9]}
25. Rxf7 {[%clk 0:01:31.2]} 25... Qd6 {[%clk 0:00:03.5]} 26. Qa4 {[%clk
0:01:23.5]} 26... Re8 {[%clk 0:00:03.9]} 27. Qxe8 {[%clk 0:01:22.8]} 1-0